[Event "*** Titled Tuesday Blitz"]
[Site "Chess.com"]
[Date "2021.04.27"]
[Round "7"]
[White "korkmaz16"]
[Black "lagedema"]
[Result "1/2-1/2"]
[WhiteElo "2426"]
[BlackElo "2572"]
[TimeControl "180+1"]
[EndTime "11:13:19 PDT"]
[Termination "Game drawn by repetition"]

1. e4 {[%clk 0:03:00.9]} 1... c5 {[%clk 0:02:59.3]} 2. Nc3 {[%clk 0:02:54.7]}
2... Nc6 {[%clk 0:02:57.9]} 3. f4 {[%clk 0:02:54.5]} 3... e6 {[%clk 0:02:55.9]}
4. Nf3 {[%clk 0:02:54.8]} 4... a6 {[%clk 0:02:55.7]} 5. d3 {[%clk 0:02:51.5]}
5... d5 {[%clk 0:02:54]} 6. g3 {[%clk 0:02:51.3]} 6... b5 {[%clk 0:02:53.1]} 7.
exd5 {[%clk 0:02:49]} 7... exd5 {[%clk 0:02:52.7]} 8. Bg2 {[%clk 0:02:49.7]}
8... Nf6 {[%clk 0:02:52.1]} 9. O-O {[%clk 0:02:50]} 9... Be7 {[%clk 0:02:52.7]}
10. Re1 {[%clk 0:02:50.1]} 10... O-O {[%clk 0:02:52]} 11. Ne5 {[%clk 0:02:50.4]}
11... Bb7 {[%clk 0:02:52.3]} 12. Nxc6 {[%clk 0:02:48.2]} 12... Bxc6 {[%clk
0:02:51.8]} 13. Qf3 {[%clk 0:02:48.7]} 13... Rc8 {[%clk 0:02:50.1]} 14. Bd2
{[%clk 0:02:47.4]} 14... d4 {[%clk 0:02:47.9]} 15. Ne4 {[%clk 0:02:46.9]} 15...
Nxe4 {[%clk 0:02:47.9]} 16. dxe4 {[%clk 0:02:46.9]} 16... c4 {[%clk 0:02:47]}
17. c3 {[%clk 0:02:43.4]} 17... Bc5 {[%clk 0:02:44.7]} 18. cxd4 {[%clk
0:02:39.2]} 18... Bxd4+ {[%clk 0:02:43]} 19. Be3 {[%clk 0:02:39.2]} 19... Bxb2
{[%clk 0:02:42.4]} 20. Rad1 {[%clk 0:02:39]} 20... Qe7 {[%clk 0:02:41.1]} 21.
Qf2 {[%clk 0:02:33.8]} 21... Ba3 {[%clk 0:02:40.9]} 22. e5 {[%clk 0:02:14.6]}
22... Bxg2 {[%clk 0:02:38.9]} 23. Qxg2 {[%clk 0:02:14.5]} 23... Bc5 {[%clk
0:02:37.7]} 24. Qe4 {[%clk 0:01:57.5]} 24... b4 {[%clk 0:02:33.7]} 25. f5 {[%clk
0:01:55.5]} 25... c3 {[%clk 0:02:30.9]} 26. f6 {[%clk 0:01:54.9]} 26... gxf6
{[%clk 0:02:30.6]} 27. Qg4+ {[%clk 0:01:48.1]} 27... Kh8 {[%clk 0:02:29.9]} 28.
Bxc5 {[%clk 0:01:23.4]} 28... Qxc5+ {[%clk 0:02:29.2]} 29. Kg2 {[%clk 0:01:24]}
29... fxe5 {[%clk 0:02:27.8]} 30. Qf5 {[%clk 0:01:22.2]} 30... c2 {[%clk
0:02:23.3]} 31. Qf6+ {[%clk 0:01:21.5]} 31... Kg8 {[%clk 0:02:23.1]} 32. Qg5+
{[%clk 0:01:21.9]} 32... Kh8 {[%clk 0:02:22.6]} 33. Qf6+ {[%clk 0:01:22.3]}
33... Kg8 {[%clk 0:02:22.7]} 34. Qg5+ {[%clk 0:01:22.5]} 34... Kh8 {[%clk
0:02:22.8]} 35. Qf6+ {[%clk 0:01:22.9]} 1/2-1/2

[Event "*** Titled Tuesday Blitz"]
[Site "Chess.com"]
[Date "2021.04.27"]
[Round "7"]
[White "Arystanner"]
[Black "Kretov_Evgenij"]
[Result "1-0"]
[WhiteElo "2828"]
[BlackElo "2655"]
[TimeControl "180+1"]
[EndTime "11:13:50 PDT"]
[Termination "Arystanner won by resignation"]

1. e4 {[%clk 0:03:00.2]} 1... c5 {[%clk 0:02:57.9]} 2. Nf3 {[%clk 0:03:00.4]}
2... Nc6 {[%clk 0:02:58.1]} 3. Bb5 {[%clk 0:03:00.1]} 3... a6 {[%clk 0:02:58.1]}
4. Bxc6 {[%clk 0:02:59.6]} 4... dxc6 {[%clk 0:02:59]} 5. h3 {[%clk 0:02:59.9]}
5... e5 {[%clk 0:02:58.2]} 6. d3 {[%clk 0:02:57.9]} 6... Bd6 {[%clk 0:02:58.3]}
7. Be3 {[%clk 0:02:57.5]} 7... Ne7 {[%clk 0:02:57.9]} 8. Nc3 {[%clk 0:02:55.2]}
8... Ng6 {[%clk 0:02:56.4]} 9. Qd2 {[%clk 0:02:52.6]} 9... a5 {[%clk 0:02:55.1]}
10. a4 {[%clk 0:02:51.8]} 10... b6 {[%clk 0:02:53]} 11. b3 {[%clk 0:02:51.4]}
11... Qe7 {[%clk 0:02:50.6]} 12. O-O {[%clk 0:02:45.8]} 12... O-O {[%clk
0:02:48.7]} 13. Nh2 {[%clk 0:02:42.5]} 13... f5 {[%clk 0:02:45]} 14. exf5 {[%clk
0:02:41.2]} 14... Bxf5 {[%clk 0:02:45]} 15. Rae1 {[%clk 0:02:38.6]} 15... Rae8
{[%clk 0:02:41.7]} 16. Ne4 {[%clk 0:02:36.7]} 16... Bc7 {[%clk 0:02:41.3]} 17.
Qc3 {[%clk 0:02:31.8]} 17... Qd7 {[%clk 0:02:37.7]} 18. Ng3 {[%clk 0:02:19.6]}
18... Bxh3 {[%clk 0:02:17.1]} 19. gxh3 {[%clk 0:02:19.7]} 19... Qxh3 {[%clk
0:02:17.1]} 20. Qc4+ {[%clk 0:02:20.2]} 20... Kh8 {[%clk 0:02:15.5]} 21. Qg4
{[%clk 0:02:20.4]} 21... Qxg4 {[%clk 0:01:57.6]} 22. Nxg4 {[%clk 0:02:20.2]}
22... Nh4 {[%clk 0:01:57.8]} 23. Re2 {[%clk 0:02:10.6]} 23... g6 {[%clk
0:01:54]} 24. Ne4 {[%clk 0:01:51.1]} 24... Rf7 {[%clk 0:01:44]} 25. Bg5 {[%clk
0:01:43.6]} 25... Nf3+ {[%clk 0:01:43]} 26. Kg2 {[%clk 0:01:43.7]} 26... h5
{[%clk 0:01:42]} 27. Ngf6 {[%clk 0:01:37.5]} 27... Nxg5 {[%clk 0:01:41.6]} 28.
Nxe8 {[%clk 0:01:36.8]} 28... Nxe4 {[%clk 0:01:39.5]} 29. dxe4 {[%clk
0:01:28.9]} 29... Bd8 {[%clk 0:01:34.3]} 30. Nd6 {[%clk 0:01:27.1]} 30... Rd7
{[%clk 0:01:33.8]} 31. Nc4 {[%clk 0:01:26.4]} 1-0

[Event "*** Titled Tuesday Blitz"]
[Site "Chess.com"]
[Date "2021.04.27"]
[Round "7"]
[White "PolandHussars"]
[Black "anon6121824"]
[Result "0-1"]
[WhiteElo "2627"]
[BlackElo "2819"]
[TimeControl "180+1"]
[EndTime "11:13:51 PDT"]
[Termination "anon6121824 won by resignation"]

1. e4 {[%clk 0:03:00.9]} 1... Nf6 {[%clk 0:02:59.8]} 2. e5 {[%clk 0:03:00.2]}
2... Nd5 {[%clk 0:03:00.3]} 3. d4 {[%clk 0:03:00.5]} 3... Nb6 {[%clk 0:03:00.9]}
4. c4 {[%clk 0:03:00.3]} 4... d6 {[%clk 0:03:01.8]} 5. exd6 {[%clk 0:03:01.1]}
5... cxd6 {[%clk 0:03:02.7]} 6. Nc3 {[%clk 0:03:01.5]} 6... g6 {[%clk
0:03:03.3]} 7. Be3 {[%clk 0:03:02.2]} 7... Bg7 {[%clk 0:03:03.9]} 8. Rc1 {[%clk
0:03:02.8]} 8... O-O {[%clk 0:03:04.5]} 9. b3 {[%clk 0:03:03.4]} 9... Bf5 {[%clk
0:03:05.1]} 10. h3 {[%clk 0:03:03.5]} 10... d5 {[%clk 0:03:01.1]} 11. c5 {[%clk
0:03:03.3]} 11... Nc8 {[%clk 0:03:01.5]} 12. Nf3 {[%clk 0:03:01.3]} 12... Nc6
{[%clk 0:03:01.4]} 13. Be2 {[%clk 0:02:56.5]} 13... e6 {[%clk 0:03:01.4]} 14.
O-O {[%clk 0:02:56.4]} 14... N8e7 {[%clk 0:03:01.9]} 15. a3 {[%clk 0:02:54.4]}
15... Be4 {[%clk 0:03:01.6]} 16. b4 {[%clk 0:02:49.2]} 16... Bxf3 {[%clk
0:03:01.5]} 17. Bxf3 {[%clk 0:02:50.1]} 17... Nf5 {[%clk 0:03:01.9]} 18. Ne2
{[%clk 0:02:48.6]} 18... Nh4 {[%clk 0:03:01.7]} 19. b5 {[%clk 0:02:40.4]} 19...
Nxf3+ {[%clk 0:03:00.7]} 20. gxf3 {[%clk 0:02:41.3]} 20... Ne7 {[%clk
0:03:01.4]} 21. f4 {[%clk 0:02:41.5]} 21... Nf5 {[%clk 0:02:58.4]} 22. Ng3
{[%clk 0:02:41.7]} 22... Qh4 {[%clk 0:02:57.9]} 23. Kg2 {[%clk 0:02:38.7]} 23...
Rfc8 {[%clk 0:02:52.4]} 24. Qg4 {[%clk 0:02:32.6]} 24... Qxg4 {[%clk 0:02:51.8]}
25. hxg4 {[%clk 0:02:32.2]} 25... Nxd4 {[%clk 0:02:52.5]} 26. Bxd4 {[%clk
0:02:22.3]} 26... Bxd4 {[%clk 0:02:53.4]} 27. c6 {[%clk 0:02:22.6]} 27... bxc6
{[%clk 0:02:40.1]} 28. Rxc6 {[%clk 0:02:23.5]} 28... Rxc6 {[%clk 0:02:34.1]} 29.
bxc6 {[%clk 0:02:24.4]} 29... Rc8 {[%clk 0:02:34.8]} 30. Rc1 {[%clk 0:02:24.2]}
30... Bb2 {[%clk 0:02:21.6]} 31. Rc5 {[%clk 0:02:23.4]} 31... Bxa3 {[%clk
0:02:20.4]} 32. Ra5 {[%clk 0:02:23.6]} 32... Bd6 {[%clk 0:02:20.7]} 33. Rxa7
{[%clk 0:02:23.7]} 33... Rxc6 {[%clk 0:02:20.2]} 34. Ne2 {[%clk 0:02:24.1]}
34... Bc5 {[%clk 0:01:46.7]} 35. Ra8+ {[%clk 0:02:20.9]} 35... Kg7 {[%clk
0:01:46.5]} 36. Kf3 {[%clk 0:02:21.5]} 36... Rc7 {[%clk 0:01:44.4]} 37. g5
{[%clk 0:02:19.5]} 37... h6 {[%clk 0:01:41.9]} 38. gxh6+ {[%clk 0:02:18.6]}
38... Kxh6 {[%clk 0:01:42.8]} 39. Ng3 {[%clk 0:02:05.9]} 39... Bd6 {[%clk
0:01:37.9]} 40. Rd8 {[%clk 0:02:03]} 40... Rc3+ {[%clk 0:01:33]} 41. Kg4 {[%clk
0:02:03.2]} 41... f5+ {[%clk 0:01:33.3]} 42. Kh4 {[%clk 0:01:58]} 42... Be7+
{[%clk 0:01:33.1]} 43. Kh3 {[%clk 0:01:57.6]} 43... Bxd8 {[%clk 0:01:33]} 0-1

[Event "*** Titled Tuesday Blitz"]
[Site "Chess.com"]
[Date "2021.04.27"]
[Round "7"]
[White "pastouche06"]
[Black "Valeron87"]
[Result "1-0"]
[WhiteElo "2567"]
[BlackElo "2413"]
[TimeControl "180+1"]
[EndTime "11:14:01 PDT"]
[Termination "pastouche06 won by resignation"]

1. d4 {[%clk 0:03:00.9]} 1... d5 {[%clk 0:02:58.9]} 2. c4 {[%clk 0:03:00.9]}
2... e6 {[%clk 0:02:57.8]} 3. Nc3 {[%clk 0:03:00.6]} 3... c6 {[%clk 0:02:57.6]}
4. e4 {[%clk 0:02:58.1]} 4... dxe4 {[%clk 0:02:57]} 5. Nxe4 {[%clk 0:02:59]}
5... Bb4+ {[%clk 0:02:57]} 6. Bd2 {[%clk 0:02:49.1]} 6... Qxd4 {[%clk
0:02:56.4]} 7. Bxb4 {[%clk 0:02:48.6]} 7... Qxe4+ {[%clk 0:02:57]} 8. Ne2 {[%clk
0:02:49.3]} 8... Na6 {[%clk 0:02:48.7]} 9. Bf8 {[%clk 0:02:48.2]} 9... Ne7
{[%clk 0:02:46.6]} 10. Bxg7 {[%clk 0:02:41.7]} 10... Nb4 {[%clk 0:02:34.5]} 11.
Bxh8 {[%clk 0:02:27]} 11... e5 {[%clk 0:01:53.5]} 12. Qd6 {[%clk 0:02:16.7]}
12... Nd3+ {[%clk 0:00:58.9]} 13. Kd2 {[%clk 0:02:13.2]} 13... Bf5 {[%clk
0:00:53.3]} 14. Bf6 {[%clk 0:02:03]} 14... Nd5 {[%clk 0:00:43.6]} 15. cxd5
{[%clk 0:01:51.6]} 15... Qb4+ {[%clk 0:00:21.2]} 16. Qxb4 {[%clk 0:01:49.4]} 1-0

[Event "*** Titled Tuesday Blitz"]
[Site "Chess.com"]
[Date "2021.04.27"]
[Round "7"]
[White "BanjoKazooieN64"]
[Black "gxbg2000"]
[Result "1-0"]
[WhiteElo "2502"]
[BlackElo "1964"]
[TimeControl "180+1"]
[EndTime "11:14:08 PDT"]
[Termination "BanjoKazooieN64 won by resignation"]

1. e4 {[%clk 0:00:13.3]} 1... g6 {[%clk 0:02:55.8]} 2. d4 {[%clk 0:00:13.4]}
2... Bg7 {[%clk 0:02:55.8]} 3. Nc3 {[%clk 0:00:14.3]} 3... c5 {[%clk 0:02:54.5]}
4. Be3 {[%clk 0:00:14.9]} 4... Nc6 {[%clk 0:02:53.8]} 5. d5 {[%clk 0:00:15]}
5... Nb8 {[%clk 0:02:53.2]} 6. f4 {[%clk 0:00:14.9]} 6... d6 {[%clk 0:02:53.5]}
7. Nf3 {[%clk 0:00:15.4]} 7... Bg4 {[%clk 0:02:52.3]} 8. h3 {[%clk 0:00:14.7]}
8... Bc8 {[%clk 0:02:48.1]} 9. Bb5+ {[%clk 0:00:14.5]} 9... Nd7 {[%clk
0:02:47.4]} 10. O-O {[%clk 0:00:14.7]} 10... Nf6 {[%clk 0:02:47.4]} 11. e5
{[%clk 0:00:14.6]} 11... Ng8 {[%clk 0:02:45.8]} 12. e6 {[%clk 0:00:14.9]} 12...
fxe6 {[%clk 0:02:42.2]} 13. dxe6 {[%clk 0:00:15.8]} 13... Nf6 {[%clk 0:02:41.3]}
14. exd7+ {[%clk 0:00:15.5]} 14... Bxd7 {[%clk 0:02:41.8]} 15. Bxd7+ {[%clk
0:00:15.8]} 15... Qxd7 {[%clk 0:02:42.3]} 16. Nd5 {[%clk 0:00:15.9]} 16... O-O
{[%clk 0:02:41.8]} 17. Ng5 {[%clk 0:00:15.7]} 17... e6 {[%clk 0:02:39.6]} 18.
Nxf6+ {[%clk 0:00:14.8]} 18... Bxf6 {[%clk 0:02:39.8]} 19. c3 {[%clk 0:00:15.5]}
19... h6 {[%clk 0:02:39.5]} 20. Ne4 {[%clk 0:00:15.2]} 20... Be7 {[%clk
0:02:37.5]} 21. Qg4 {[%clk 0:00:15.3]} 21... Kh7 {[%clk 0:02:33.7]} 22. Rad1
{[%clk 0:00:15.9]} 22... Qc8 {[%clk 0:02:19.9]} 23. Nxd6 {[%clk 0:00:15.5]}
23... Bxd6 {[%clk 0:02:18.5]} 24. Rxd6 {[%clk 0:00:16.4]} 24... Qc7 {[%clk
0:02:18.4]} 25. Rfd1 {[%clk 0:00:16.4]} 25... Rf7 {[%clk 0:02:17.8]} 26. Qxe6
{[%clk 0:00:16.6]} 26... Raf8 {[%clk 0:02:17.7]} 27. Rd7 {[%clk 0:00:16.5]}
27... Rxd7 {[%clk 0:02:16.4]} 28. Rxd7+ {[%clk 0:00:17.4]} 1-0

[Event "*** Titled Tuesday Blitz"]
[Site "Chess.com"]
[Date "2021.04.27"]
[Round "7"]
[White "LenkaPtacnikova"]
[Black "MaevskiyNikolay"]
[Result "1/2-1/2"]
[WhiteElo "2205"]
[BlackElo "2470"]
[TimeControl "180+1"]
[EndTime "11:14:13 PDT"]
[Termination "Game drawn by agreement"]

1. c4 {[%clk 0:03:00.9]} 1... Nc6 {[%clk 0:02:58.6]} 2. g3 {[%clk 0:03:00.9]}
2... g6 {[%clk 0:02:54.7]} 3. Bg2 {[%clk 0:03:01.3]} 3... Bg7 {[%clk 0:02:53.7]}
4. Nc3 {[%clk 0:03:01.9]} 4... d6 {[%clk 0:02:53.7]} 5. e4 {[%clk 0:02:58.6]}
5... h5 {[%clk 0:02:52.1]} 6. h4 {[%clk 0:02:57]} 6... e5 {[%clk 0:02:42.7]} 7.
Nge2 {[%clk 0:02:56.4]} 7... Nge7 {[%clk 0:02:39.1]} 8. d3 {[%clk 0:02:56.1]}
8... Be6 {[%clk 0:02:37.1]} 9. Nd5 {[%clk 0:02:53.4]} 9... a5 {[%clk 0:02:32.9]}
10. Bg5 {[%clk 0:02:51.9]} 10... Bxd5 {[%clk 0:02:07.7]} 11. cxd5 {[%clk
0:02:46.7]} 11... Nd4 {[%clk 0:01:54.3]} 12. Nxd4 {[%clk 0:02:31.2]} 12... exd4
{[%clk 0:01:54.5]} 13. Qa4+ {[%clk 0:02:23.4]} 13... Qd7 {[%clk 0:01:48.2]} 14.
Qxd7+ {[%clk 0:02:17.6]} 14... Kxd7 {[%clk 0:01:48.4]} 15. Bh3+ {[%clk
0:02:14.9]} 15... Ke8 {[%clk 0:01:45.5]} 16. Rc1 {[%clk 0:02:13.4]} 16... c5
{[%clk 0:01:44.3]} 17. dxc6 {[%clk 0:02:08.1]} 17... Nxc6 {[%clk 0:01:44.4]} 18.
Bd2 {[%clk 0:01:57.3]} 18... a4 {[%clk 0:01:44.2]} 19. f4 {[%clk 0:01:44.4]}
19... Ra6 {[%clk 0:01:42.2]} 20. Rc2 {[%clk 0:01:29.4]} 20... Rb6 {[%clk
0:01:21]} 21. a3 {[%clk 0:01:28]} 21... Ke7 {[%clk 0:01:20.9]} 22. Ke2 {[%clk
0:01:27.6]} 22... Ra8 {[%clk 0:01:20.1]} 23. Rhc1 {[%clk 0:01:23.3]} 23... Raa6
{[%clk 0:01:19.1]} 1/2-1/2

[Event "*** Titled Tuesday Blitz"]
[Site "Chess.com"]
[Date "2021.04.27"]
[Round "7"]
[White "Oleksandr_Bortnyk"]
[Black "MITerryble"]
[Result "1-0"]
[WhiteElo "2969"]
[BlackElo "2892"]
[TimeControl "180+1"]
[EndTime "11:14:27 PDT"]
[Termination "Oleksandr_Bortnyk won by resignation"]

1. e4 {[%clk 0:03:00.9]} 1... e6 {[%clk 0:02:57.5]} 2. Nf3 {[%clk 0:02:56.3]}
2... d5 {[%clk 0:02:57.6]} 3. e5 {[%clk 0:02:57.2]} 3... b6 {[%clk 0:02:50.2]}
4. d4 {[%clk 0:02:58.1]} 4... Qd7 {[%clk 0:02:46.8]} 5. c3 {[%clk 0:02:48.4]}
5... Ba6 {[%clk 0:02:46.8]} 6. Bxa6 {[%clk 0:02:47.3]} 6... Nxa6 {[%clk
0:02:47.7]} 7. Qd3 {[%clk 0:02:48.1]} 7... Nb8 {[%clk 0:02:47.1]} 8. O-O {[%clk
0:02:47.5]} 8... c5 {[%clk 0:02:47]} 9. a4 {[%clk 0:02:46]} 9... Nc6 {[%clk
0:02:46.5]} 10. Bd2 {[%clk 0:02:45.8]} 10... c4 {[%clk 0:02:45.3]} 11. Qe2
{[%clk 0:02:45]} 11... Na5 {[%clk 0:02:45.9]} 12. Bg5 {[%clk 0:02:43.5]} 12...
h6 {[%clk 0:02:41.9]} 13. Bh4 {[%clk 0:02:43.5]} 13... Ne7 {[%clk 0:02:41.6]}
14. Bxe7 {[%clk 0:02:42.2]} 14... Bxe7 {[%clk 0:02:41.3]} 15. Nbd2 {[%clk
0:02:43.1]} 15... O-O {[%clk 0:02:40.4]} 16. Ne1 {[%clk 0:02:41.3]} 16... Rae8
{[%clk 0:02:31.3]} 17. f4 {[%clk 0:02:41.7]} 17... f5 {[%clk 0:02:31.2]} 18.
exf6 {[%clk 0:02:42]} 18... Rxf6 {[%clk 0:02:28.3]} 19. g3 {[%clk 0:02:41.9]}
19... g5 {[%clk 0:02:05.6]} 20. Nef3 {[%clk 0:02:39.4]} 20... gxf4 {[%clk
0:01:53.6]} 21. Ne5 {[%clk 0:02:39.6]} 21... Qc8 {[%clk 0:01:47.5]} 22. Qh5
{[%clk 0:02:24.3]} 22... Bf8 {[%clk 0:01:32.3]} 23. Ng4 {[%clk 0:02:16.5]} 23...
Rf5 {[%clk 0:01:20.4]} 24. Qg6+ {[%clk 0:02:17]} 24... Kh8 {[%clk 0:01:20.7]}
25. Nf6 {[%clk 0:02:15.9]} 25... Rxf6 {[%clk 0:01:17.4]} 26. Qxf6+ {[%clk
0:02:16.8]} 26... Bg7 {[%clk 0:01:18.3]} 27. Qxf4 {[%clk 0:02:17.4]} 27... e5
{[%clk 0:01:04.4]} 28. dxe5 {[%clk 0:02:16.6]} 28... Nc6 {[%clk 0:00:53.5]} 29.
Nf3 {[%clk 0:02:15]} 29... Nxe5 {[%clk 0:00:53.4]} 30. Nxe5 {[%clk 0:02:14.8]}
30... Rxe5 {[%clk 0:00:54.3]} 31. Rae1 {[%clk 0:02:14.6]} 31... Rg5 {[%clk
0:00:48.1]} 32. Qf7 {[%clk 0:02:09.2]} 32... Kh7 {[%clk 0:00:43.6]} 33. Re8
{[%clk 0:02:06.8]} 1-0

[Event "*** Titled Tuesday Blitz"]
[Site "Chess.com"]
[Date "2021.04.27"]
[Round "7"]
[White "grandcoach"]
[Black "KetiGrant"]
[Result "0-1"]
[WhiteElo "2242"]
[BlackElo "2362"]
[TimeControl "180+1"]
[EndTime "11:14:37 PDT"]
[Termination "KetiGrant won by checkmate"]

1. e4 {[%clk 0:03:00.9]} 1... c5 {[%clk 0:02:59.5]} 2. b4 {[%clk 0:02:59.8]}
2... cxb4 {[%clk 0:02:57.7]} 3. a3 {[%clk 0:03:00.3]} 3... e6 {[%clk 0:02:57.1]}
4. axb4 {[%clk 0:02:59.4]} 4... Bxb4 {[%clk 0:02:56.9]} 5. c3 {[%clk 0:03:00]}
5... Be7 {[%clk 0:02:56.7]} 6. d4 {[%clk 0:03:00.5]} 6... d6 {[%clk 0:02:55.3]}
7. Bd3 {[%clk 0:02:59.2]} 7... Nf6 {[%clk 0:02:54.7]} 8. f4 {[%clk 0:02:58.2]}
8... Nc6 {[%clk 0:02:47]} 9. Nd2 {[%clk 0:02:55.2]} 9... O-O {[%clk 0:02:28.5]}
10. Ngf3 {[%clk 0:02:52.4]} 10... Ng4 {[%clk 0:02:10.6]} 11. Nf1 {[%clk
0:02:36.7]} 11... f5 {[%clk 0:02:06.4]} 12. e5 {[%clk 0:02:30.8]} 12... dxe5
{[%clk 0:02:00.8]} 13. fxe5 {[%clk 0:02:30.5]} 13... b6 {[%clk 0:01:35.9]} 14.
h3 {[%clk 0:02:24.8]} 14... Nh6 {[%clk 0:01:32.4]} 15. Ne3 {[%clk 0:02:22]}
15... Bh4+ {[%clk 0:01:24.3]} 16. Nxh4 {[%clk 0:02:10.7]} 16... Qxh4+ {[%clk
0:01:22.7]} 17. Kf1 {[%clk 0:02:06.8]} 17... Bb7 {[%clk 0:01:20.3]} 18. Kg1
{[%clk 0:01:57.1]} 18... f4 {[%clk 0:01:12.4]} 19. Nc4 {[%clk 0:01:52]} 19...
Ne7 {[%clk 0:01:07.1]} 20. Nd6 {[%clk 0:01:49.4]} 20... Bd5 {[%clk 0:01:04.8]}
21. c4 {[%clk 0:01:45.2]} 21... Bc6 {[%clk 0:01:03]} 22. Qc2 {[%clk 0:01:36]}
22... Qe1+ {[%clk 0:00:58.7]} 23. Kh2 {[%clk 0:01:34.5]} 23... Qg3+ {[%clk
0:00:58.3]} 24. Kg1 {[%clk 0:01:33.7]} 24... Nhf5 {[%clk 0:00:56.8]} 25. Bd2
{[%clk 0:01:01.8]} 25... Qxg2# {[%clk 0:00:51.4]} 0-1

[Event "*** Titled Tuesday Blitz"]
[Site "Chess.com"]
[Date "2021.04.27"]
[Round "7"]
[White "Aslanov_Umid"]
[Black "Guzman70"]
[Result "1-0"]
[WhiteElo "2447"]
[BlackElo "2288"]
[TimeControl "180+1"]
[EndTime "11:14:39 PDT"]
[Termination "Aslanov_Umid won by resignation"]

1. e4 {[%clk 0:02:55.9]} 1... c5 {[%clk 0:02:59.5]} 2. Nf3 {[%clk 0:02:55.4]}
2... d6 {[%clk 0:02:58.5]} 3. d4 {[%clk 0:02:55.8]} 3... cxd4 {[%clk 0:02:59.4]}
4. Nxd4 {[%clk 0:02:56.7]} 4... Nf6 {[%clk 0:02:59.9]} 5. Nc3 {[%clk 0:02:57.1]}
5... Nc6 {[%clk 0:03:00.1]} 6. Bc4 {[%clk 0:02:56]} 6... Qb6 {[%clk 0:02:59.9]}
7. Nxc6 {[%clk 0:02:55.7]} 7... bxc6 {[%clk 0:02:59.6]} 8. O-O {[%clk
0:02:54.6]} 8... e6 {[%clk 0:02:57.8]} 9. Bb3 {[%clk 0:02:53.2]} 9... d5 {[%clk
0:02:55.9]} 10. exd5 {[%clk 0:02:53.2]} 10... cxd5 {[%clk 0:02:55.9]} 11. Be3
{[%clk 0:02:53.5]} 11... Qa5 {[%clk 0:02:48.9]} 12. Bd4 {[%clk 0:02:52.8]} 12...
Bc5 {[%clk 0:02:40.9]} 13. Bxf6 {[%clk 0:02:50.3]} 13... gxf6 {[%clk 0:02:41.8]}
14. Ba4+ {[%clk 0:02:50.7]} 14... Ke7 {[%clk 0:02:38.7]} 15. Re1 {[%clk
0:02:47.9]} 15... Bb7 {[%clk 0:02:24.7]} 16. Bb3 {[%clk 0:02:42.2]} 16... Rad8
{[%clk 0:02:18.8]} 17. Qf3 {[%clk 0:02:24.3]} 17... Bd4 {[%clk 0:01:43.8]} 18.
Rad1 {[%clk 0:02:14.1]} 18... Bxc3 {[%clk 0:01:42.4]} 19. bxc3 {[%clk 0:02:15]}
19... Qc7 {[%clk 0:01:39]} 20. Rd4 {[%clk 0:02:03.7]} 20... Rd6 {[%clk
0:01:35.3]} 21. Qg3 {[%clk 0:01:52.1]} 21... Kf8 {[%clk 0:01:24.9]} 22. Rb4
{[%clk 0:01:19]} 22... Bc6 {[%clk 0:01:17.2]} 23. Qh4 {[%clk 0:01:11.5]} 23...
Ke7 {[%clk 0:01:14]} 24. Rf4 {[%clk 0:01:07.4]} 24... e5 {[%clk 0:01:11.5]} 25.
Rxe5+ {[%clk 0:01:01.9]} 25... Re6 {[%clk 0:01:10.3]} 26. Qxf6+ {[%clk
0:00:57.7]} 26... Kd6 {[%clk 0:01:08.2]} 27. Rxe6+ {[%clk 0:00:55.5]} 1-0

[Event "*** Titled Tuesday Blitz"]
[Site "Chess.com"]
[Date "2021.04.27"]
[Round "7"]
[White "DarkAlekhine"]
[Black "BrandonJacobson"]
[Result "1-0"]
[WhiteElo "2701"]
[BlackElo "2924"]
[TimeControl "180+1"]
[EndTime "11:14:42 PDT"]
[Termination "DarkAlekhine won by resignation"]

1. e4 {[%clk 0:03:00.9]} 1... c5 {[%clk 0:03:00.1]} 2. Nf3 {[%clk 0:03:00.8]}
2... Nc6 {[%clk 0:03:00.8]} 3. d4 {[%clk 0:03:01]} 3... cxd4 {[%clk 0:03:01.7]}
4. Nxd4 {[%clk 0:03:01.9]} 4... Nf6 {[%clk 0:03:02.5]} 5. Nc3 {[%clk 0:03:02.1]}
5... d6 {[%clk 0:03:03.3]} 6. Be2 {[%clk 0:03:00.2]} 6... e5 {[%clk 0:03:03.4]}
7. Nf3 {[%clk 0:03:00.1]} 7... h6 {[%clk 0:03:04]} 8. O-O {[%clk 0:02:59.4]}
8... Be7 {[%clk 0:03:04.9]} 9. Re1 {[%clk 0:03:00]} 9... O-O {[%clk 0:03:05.8]}
10. h3 {[%clk 0:03:00.4]} 10... Be6 {[%clk 0:03:06.1]} 11. Bf1 {[%clk 0:03:01]}
11... Qc7 {[%clk 0:03:06.5]} 12. Nd5 {[%clk 0:02:59.6]} 12... Bxd5 {[%clk
0:03:06.9]} 13. exd5 {[%clk 0:03:00.5]} 13... Nb4 {[%clk 0:03:07.8]} 14. c4
{[%clk 0:03:00.3]} 14... a5 {[%clk 0:03:07.1]} 15. Be3 {[%clk 0:02:56.9]} 15...
Nd7 {[%clk 0:03:02.2]} 16. a3 {[%clk 0:02:53.4]} 16... Na6 {[%clk 0:03:02.1]}
17. Rb1 {[%clk 0:02:51.2]} 17... Nac5 {[%clk 0:02:51.3]} 18. b4 {[%clk
0:02:50.2]} 18... axb4 {[%clk 0:02:52.2]} 19. axb4 {[%clk 0:02:51.1]} 19... Ne4
{[%clk 0:02:50.5]} 20. Qc2 {[%clk 0:02:40.6]} 20... Ng5 {[%clk 0:02:32.4]} 21.
Nd2 {[%clk 0:02:28.8]} 21... f5 {[%clk 0:02:22.7]} 22. f4 {[%clk 0:02:14.6]}
22... exf4 {[%clk 0:02:23.6]} 23. Bxf4 {[%clk 0:02:15.3]} 23... Bf6 {[%clk
0:02:24.2]} 24. Bd3 {[%clk 0:01:58.7]} 24... Ra3 {[%clk 0:01:59.7]} 25. Rb3
{[%clk 0:01:39.9]} 25... Rxb3 {[%clk 0:01:50.3]} 26. Qxb3 {[%clk 0:01:40.8]}
26... Bd4+ {[%clk 0:01:41.6]} 27. Kh1 {[%clk 0:01:40]} 27... Ne5 {[%clk
0:01:41.5]} 28. c5 {[%clk 0:01:35.5]} 28... Rc8 {[%clk 0:01:00.5]} 29. Bxe5
{[%clk 0:01:30.8]} 1-0